bitfinex/quotes_ETHUSD_20250620
["timestamp","ask_amount","ask_price","bid_price","bid_amount"]
[1750409877725,6.85245721,2554.4,2554.3,5.34176691]
[1750409878230,6.85245721,2554.4,2554.3,4.46496691]
[1750409880231,6.8524644,2554.4,2554.3,4.46496691]
[1750409880433,6.85246439,2554.4,2554.3,4.46496691]
[1750409880733,0.36346439,2554.4,2554.3,4.46496691]
[1750409883762,8.202,2554.5,2554.4,3.91481365]
[1750409883928,8.565262,2554.5,2554.4,3.91481365]
[1750409884264,8.56527235,2554.5,2554.4,3.91481365]
[1750409884562,8.56527175,2554.5,2554.4,3.91481365]
[1750409885054,8.5652771,2554.5,2554.4,3.91481365]
[1750409885464,8.202,2554.5,2554.4,3.91481365]
[1750409885658,8.56534342,2554.5,2554.4,3.91481365]
[1750409885962,8.56534253,2554.5,2554.4,3.91481365]
[1750409886660,0.36334253,2554.5,2554.4,3.91481365]
[1750409886887,8.56334253,2554.5,2554.4,3.91481365]
[1750409887163,8.56234253,2554.5,2554.4,3.91481365]
[1750409888062,8.56234253,2554.5,2554.3,4.46496282]
[1750409888264,0.36334253,2554.4,2554.3,4.46496282]
[1750409888565,0.36353078,2554.4,2554.3,4.46496282]
[1750409890963,8.199,2554.5,2554.4,3.91481365]
[1750409891283,8.56259597,2554.5,2554.4,3.91481365]
[1750409891954,8.9262314,2554.5,2554.4,3.91481365]
[1750409892872,8.92624612,2554.5,2554.4,3.91481365]
[1750409893382,8.92625988,2554.5,2554.4,3.91481365]
[1750409893785,0.72725988,2554.5,2554.4,4.46481365]
[1750409894084,8.196,2554.6,2554.5,3.9146604]
[1750409894246,9.14167407,2554.6,2554.5,3.9146604]
[1750409894447,9.20357407,2554.6,2554.5,3.9146604]
[1750409895042,8.83985324,2554.6,2554.5,3.9146604]
[1750409895243,9.20362949,2554.6,2554.5,3.9146604]
[1750409895469,9.20362949,2554.6,2554.4,4.46473764]
[1750409895681,0.727497,2554.5,2554.1,0.8309]
[1750409895889,0.36377625,2554.4,2554.3,4.46484773]
[1750409896085,0.42581779,2554.4,2554.3,0.55]
[1750409896286,0.42581779,2554.4,2554.3,4.46496691]
[1750409896756,0.78972207,2554.4,2554.3,4.46496691]
[1750409897087,0.7897051,2554.4,2554.3,4.46496691]
[1750409897289,0.42580255,2554.4,2554.3,0.55]
[1750409897455,0.36390255,2554.4,2554.3,4.46496691]
[1750409897652,0.21834313,2554.5,2554.4,3.91481365]
[1750409897870,0.94639534,2554.5,2554.4,3.91481365]
[1750409898499,0.94638306,2554.5,2554.4,3.91481365]
[1750409898894,0.94637589,2554.5,2554.4,3.91481365]
[1750409899061,0.94643693,2554.5,2554.4,3.91481365]
[1750409899810,0.94633501,2554.5,2554.4,3.91481365]
[1750409900164,0.94633501,2554.5,2554.3,5.23877825]
[1750409900475,0.40305906,2554.4,2554.1,3.91517883]
[1750409900670,0.36398794,2554.3,2554.1,3.91517883]
[1750409900895,0.36398794,2554.2,2554.1,3.91517883]
[1750409902662,14.98721403,2554.5,2554.2,3.91500047]
[1750409902963,0.36399741,2554.4,2554.2,3.91500047]
[1750409903158,0.36399539,2554.3,2554.2,3.91500047]
[1750409903559,0.36400575,2554.3,2554.2,3.91500047]
[1750409903902,0.36400575,2554.3,2554.0,3.95453518]
[1750409904104,0.36400575,2554.2,2554.1,3.91527348]
[1750409904615,0.72797976,2554.2,2554.1,3.91527348]
[1750409905125,4.69749799,2553.9,2553.3,3.91638086]
[1750409905266,6.73731403,2553.6,2553.4,3.91626888]
[1750409905626,0.36310984,2553.5,2553.4,3.91626888]
[1750409906000,0.36311001,2553.5,2553.4,3.91626888]
[1750409906186,0.36311014,2553.5,2553.4,3.91626888]
[1750409907277,0.42500693,2553.5,2553.1,0.79]
[1750409907476,0.03907112,2553.5,2553.3,3.91642091]
[1750409907707,6.77638515,2553.6,2553.4,3.9163231]
[1750409907909,0.36307049,2553.5,2553.4,3.9163231]
[1750409908329,6.73731403,2553.6,2553.4,3.9163231]
[1750409908627,0.10097112,2553.7,2553.2,0.0614]
[1750409908774,0.10097112,2553.7,2553.5,3.91610935]
[1750409908775,0.36280133,2553.6,2553.5,3.91610935]
[1750409909240,0.36280771,2553.6,2553.5,3.91610935]
[1750409909378,0.36284722,2553.6,2553.5,3.91610935]
[1750409910017,0.36283837,2553.6,2553.5,3.91610935]
[1750409910310,0.42473837,2553.7,2553.5,3.91610935]
[1750409910513,0.36267202,2553.7,2553.6,4.4660401]
[1750409910821,6.83967202,2553.9,2553.8,3.91573341]
[1750409911019,6.83975623,2553.9,2553.8,3.91573341]
[1750409912078,6.83977127,2553.9,2553.8,3.91573341]
[1750409913332,6.477,2553.9,2553.8,3.91573341]
[1750409913539,6.83995299,2553.9,2553.8,3.91573341]
[1750409913733,6.477,2553.9,2553.8,3.91573341]
[1750409913938,6.90193638,2553.9,2553.8,3.91573341]
[1750409914304,6.84003638,2553.9,2553.8,3.91573341]
[1750409914510,6.83998749,2553.9,2553.8,3.91573341]
[1750409915833,1.95256757,2554.2,2554.1,3.91527348]
[1750409916049,2.31552605,2554.2,2554.1,3.97667348]
[1750409916203,1.95256757,2554.2,2554.1,3.97667348]
[1750409916404,2.31556542,2554.2,2554.1,3.91527348]
[1750409916647,2.31556121,2554.2,2554.1,3.91527348]
[1750409917512,9.11477524,2554.2,2554.0,3.91535882]
[1750409917832,0.36299364,2554.1,2553.9,4.46542791]
[1750409918137,0.36298488,2554.0,2553.9,4.46542791]
[1750409918338,0.36298488,2554.1,2554.0,3.91542678]
[1750409918643,0.36301375,2554.1,2554.0,3.91542678]
[1750409918943,0.36301721,2554.1,2554.0,3.91542678]
[1750409919340,0.36301721,2554.1,2553.9,3.9155121]
[1750409919544,0.36300003,2554.0,2553.9,3.9155121]
[1750409920010,0.36300003,2554.0,2553.8,4.46564017]
[1750409920212,0.36300003,2554.0,2553.9,3.91558009]
[1750409920550,0.36304525,2554.0,2553.9,3.91558009]
[1750409920771,0.36304525,2554.0,2553.8,0.55]
[1750409920975,0.36303962,2553.9,2553.5,0.55]
[1750409921274,0.36303962,2553.8,2553.7,3.91580974]
[1750409921476,0.36303962,2553.9,2553.8,3.91573341]
[1750409921677,0.03907112,2554.1,2554.0,3.91542678]
[1750409921678,6.474,2554.1,2554.0,3.91542678]
[1750409921848,6.83703696,2554.1,2553.9,3.91550711]
[1750409922169,6.474,2554.1,2553.9,3.91550711]
[1750409922380,0.36305959,2554.0,2553.9,3.91550711]
[1750409922572,0.3631068,2554.0,2553.9,3.91550711]
[1750409922724,0.3631068,2554.0,2553.8,4.46565646]
[1750409922929,0.3631068,2553.9,2553.8,4.46565646]
[1750409923144,0.3631068,2554.0,2553.9,3.91558009]
[1750409923537,0.36310616,2554.0,2553.9,3.91558009]
[1750409924070,0.36310616,2554.0,2553.9,4.46558009]
[1750409925071,10.13356757,2554.2,2554.0,3.91539553]
[1750409925372,0.36305995,2554.1,2554.0,3.91539553]
[1750409925948,0.36305995,2554.1,2553.9,4.46557112]
[1750409926149,0.36305995,2554.0,2553.9,4.46557112]
[1750409926876,0.36305995,2554.0,2553.9,4.46558009]
[1750409927730,16.9327816,2554.2,2553.9,4.46558009]
[1750409928064,0.36291885,2554.1,2553.9,4.46558009]
[1750409928278,0.36291885,2554.0,2553.8,3.91566247]
[1750409928476,0.03907112,2554.1,2553.8,3.91566247]
[1750409928477,0.36291885,2553.9,2553.8,4.46566247]
[1750409928834,16.9327816,2554.2,2553.8,4.46566247]
[1750409928835,0.36291885,2554.1,2553.8,4.46566247]
[1750409929038,0.36291885,2554.0,2553.8,4.46566247]
[1750409929335,0.36291885,2553.9,2553.8,4.46566247]
[1750409929638,0.36291885,2553.9,2553.8,4.52706247]
[1750409930873,16.9327816,2554.2,2553.9,3.91556715]
[1750409931068,0.36302952,2554.1,2553.9,3.91556715]
[1750409931369,7.10034355,2554.0,2553.8,4.46567088]
[1750409931582,0.36302952,2553.9,2553.8,4.46567088]
[1750409931937,0.36302952,2553.9,2553.8,0.55]
[1750409932484,7.65782952,2553.9,2553.5,3.91614804]
[1750409932774,0.36302952,2553.8,2553.6,4.46592281]
[1750409932975,0.40210064,2553.8,2553.5,3.9160673]
[1750409933187,8.172,2554.1,2553.7,4.74109206]
[1750409933474,0.36268698,2554.0,2553.7,4.74111735]
[1750409933659,0.36268698,2553.9,2553.7,3.91581735]
[1750409933982,0.36268698,2553.8,2553.7,4.46588675]
[1750409934494,0.42328698,2553.8,2553.6,3.91597963]
[1750409934639,0.0606,2553.8,2553.6,3.91597963]
[1750409935262,0.0606,2553.8,2553.7,3.91588675]
[1750409935465,0.36289335,2553.8,2553.5,3.91615844]
[1750409935647,0.36289335,2553.8,2553.1,3.91680701]
[1750409935648,6.79791403,2553.6,2553.1,3.91680701]
[1750409935862,0.0606,2553.4,2553.1,3.91680701]
[1750409936091,0.36289753,2553.3,2553.1,3.91680701]
[1750409936398,0.3628794,2553.2,2553.1,0.55]
[1750409936751,0.3628794,2553.2,2552.9,3.91702701]
[1750409936945,0.3628794,2553.1,2553.0,3.91696043]
[1750409937304,0.0606,2553.2,2553.0,3.91696043]
[1750409937602,0.3628794,2553.1,2553.0,4.46696043]
[1750409937744,0.3628794,2553.3,2553.1,3.91674257]
[1750409938065,0.3628794,2553.2,2553.1,3.91674257]
[1750409938269,0.3628794,2553.3,2553.1,3.91674257]
[1750409938576,0.3628794,2553.2,2553.0,0.55]
[1750409938744,0.42309883,2553.3,2553.0,0.55]
[1750409938945,0.0606,2553.3,2553.0,4.46689702]
[1750409939297,6.83149822,2553.2,2552.9,3.91702697]
[1750409939543,6.5296,2553.2,2552.9,0.55]
[1750409939704,0.36251809,2553.1,2552.9,0.55]
[1750409939852,0.36251809,2553.1,2553.0,3.91696043]
[1750409940057,6.469,2553.2,2553.0,3.91696043]
[1750409940351,8.171,2553.2,2553.0,3.91696043]
[1750409940553,8.171,2553.4,2553.2,3.91656056]
[1750409940905,10.2865,2553.9,2553.3,0.55]
[1750409941209,8.171,2553.7,2553.6,3.9160401]
[1750409941351,8.53334953,2553.7,2553.6,3.9160401]
[1750409941752,2.06436258,2553.7,2553.6,3.9160401]
[1750409941981,2.06432737,2553.7,2553.6,3.9160401]
[1750409942902,2.06443609,2553.7,2553.6,3.9160401]
[1750409943565,2.12503609,2553.7,2553.4,0.55]
[1750409943895,0.36243338,2553.6,2553.4,0.55]
[1750409944092,14.36024741,2553.5,2552.8,3.91726731]
[1750409944407,6.79791403,2553.3,2552.9,3.91703377]
[1750409944554,0.7925,2553.5,2553.2,3.91660768]
[1750409944904,8.53135472,2553.4,2553.2,3.91660768]
[1750409945062,0.36235472,2553.3,2553.2,3.91660768]
[1750409945268,6.82935472,2553.3,2553.2,3.97350768]
[1750409945520,0.7885,2553.7,2553.4,3.91633115]
[1750409945824,0.36223546,2553.6,2553.5,5.26199345]
[1750409946108,0.36223546,2553.6,2553.5,5.31889345]
[1750409946400,8.169,2553.7,2553.6,4.4660401]
[1750409946567,8.169,2553.8,2553.7,3.91578083]
[1750409946769,1.85346793,2553.9,2553.8,5.31843341]
[1750409947169,1.85346793,2553.9,2553.8,15.31843341]
[1750409947369,0.7964,2555.2,2554.9,3.91390098]
[1750409947588,0.7964,2555.2,2555.0,3.91389049]
[1750409947902,10.0,2555.4,2555.0,3.91380301]
[1750409948122,3.91110281,2556.9,2554.8,0.55]
[1750409948262,3.91110281,2556.9,2555.8,0.55]
[1750409948263,2.64419425,2556.2,2555.8,0.55]
[1750409948459,3.48919425,2556.2,2555.8,0.6069]
[1750409948787,6.467,2556.5,2555.9,0.55]
[1750409948957,7.53371403,2556.7,2555.9,0.55]
[1750409948958,0.7964,2556.7,2555.9,0.55]
[1750409949162,12.93738356,2556.7,2555.9,0.6069]
[1750409949392,8.9654,2556.7,2556.2,3.91204644]
[1750409949568,0.0606,2556.6,2556.2,3.91204644]
[1750409949770,0.0606,2556.6,2556.1,4.46216353]
[1750409949967,0.0606,2556.6,2556.1,0.55]
[1750409950159,10.0606,2556.6,2556.0,0.55]
[1750409950361,10.0606,2556.6,2555.8,4.69557931]
[1750409950362,3.91177006,2556.4,2555.8,4.69557931]
[1750409950580,6.5256,2556.3,2555.9,4.4624276]
[1750409950799,6.465,2556.3,2555.9,4.4624276]
[1750409950971,6.465,2556.3,2555.9,0.55]
[1750409951181,3.91166562,2556.5,2555.9,4.4624884]
[1750409951474,8.167,2556.3,2555.9,4.4624884]
[1750409952064,8.167,2556.5,2555.9,0.55]
[1750409952374,8.167,2556.5,2555.9,4.46249299]
[1750409952575,0.0606,2556.4,2556.0,3.91234949]
[1750409952986,0.0606,2556.4,2556.1,3.91220217]
[1750409953164,8.165,2556.3,2556.1,3.91220217]
[1750409954311,8.165,2556.3,2556.0,3.91228692]
[1750409954627,0.0606,2556.6,2556.1,3.91220754]
[1750409954762,3.97204841,2556.6,2556.1,3.91220754]
[1750409954963,8.2256,2556.5,2556.1,3.91220754]
[1750409955380,12.13723871,2556.5,2556.1,0.55]
[1750409955606,12.07663871,2556.5,2556.1,0.55]
[1750409955930,3.91186935,2556.4,2555.9,0.55]
[1750409956224,0.8106,2556.3,2555.9,0.55]
[1750409956382,0.8106,2556.3,2555.9,4.46246065]
[1750409956724,0.8712,2556.3,2556.0,3.91233659]
[1750409957064,0.8712,2556.3,2555.9,4.46243085]
[1750409958199,0.8712,2556.3,2555.9,0.55]
[1750409958425,0.8712,2556.3,2556.0,3.91235033]
[1750409958628,0.8106,2556.3,2556.0,3.91235033]
[1750409959029,0.8712,2556.3,2555.9,0.55]
[1750409959208,0.8712,2556.3,2555.9,4.46244505]
[1750409959391,0.8712,2556.3,2556.0,3.91236275]
[1750409959588,0.8712,2556.3,2555.9,4.46243904]
[1750409960149,4.78312875,2556.3,2555.8,0.55]
[1750409960308,0.8712,2556.3,2555.9,3.91250488]
[1750409961334,4.78312448,2556.3,2555.8,4.52358722]
[1750409961843,0.8712,2556.3,2555.9,3.91250118]
[1750409962160,0.8712,2556.3,2555.8,4.52356394]
[1750409962341,3.91257998,2555.9,2555.4,4.6839459]
[1750409962649,8.9174,2555.8,2555.5,3.91310952]
[1750409962934,0.7614,2555.8,2555.5,3.91312616]
[1750409963095,8.156,2555.7,2555.5,3.91312616]
[1750409963829,8.156,2555.7,2555.5,3.91304067]
[1750409963995,8.156,2555.7,2555.5,4.46304067]
[1750409964396,8.156,2555.7,2555.5,0.55]
[1750409964599,8.156,2555.7,2555.4,3.91320115]
[1750409964828,8.156,2555.7,2555.5,3.91310058]
[1750409966933,8.156,2555.7,2555.6,3.91297542]
[1750409967837,0.8203,2556.0,2555.7,3.91276257]
[1750409968159,8.2149,2555.9,2555.6,3.91289498]
[1750409969030,10.7955,2556.2,2555.8,3.9125349]
[1750409969248,8.155,2556.1,2555.9,3.91244487]
[1750409969452,8.155,2556.0,2555.9,3.91244487]
[1750409969855,8.155,2556.0,2555.8,4.46259292]
[1750409970060,8.155,2556.0,2555.4,0.8821]
[1750409970230,8.155,2556.0,2555.7,3.9128118]
[1750409970431,0.7955,2556.2,2555.9,3.91248158]
[1750409970654,8.155,2556.1,2555.9,0.061]
[1750409970987,8.155,2556.1,2555.9,3.97344966]
[1750409971484,0.0589,2556.1,2555.7,4.46273823]
[1750409971646,8.2139,2556.1,2555.8,3.91266017]
[1750409971848,8.2139,2556.1,2555.7,4.46269131]
[1750409972079,8.2139,2556.1,2555.8,3.91260332]
[1750409972680,0.36046098,2556.0,2555.8,3.91260332]
[1750409972887,1.7559,2556.1,2555.9,3.91250448]
[1750409973181,8.155,2556.1,2555.8,3.91258786]
[1750409973385,8.155,2556.1,2555.9,3.91250872]
[1750409973584,8.155,2556.1,2555.8,3.91253954]
[1750409973904,8.155,2556.1,2555.8,3.97353954]
[1750409974400,8.155,2556.1,2555.8,3.97355809]
[1750409974713,0.36045563,2556.0,2555.8,3.97355809]
[1750409974898,0.36126988,2556.0,2555.8,0.061]
[1750409975207,0.36126988,2556.0,2555.7,3.91275029]
[1750409975354,0.36126988,2556.0,2555.8,3.91264439]
[1750409975751,0.36126933,2556.0,2555.8,3.91264439]
[1750409975953,0.36126882,2556.0,2555.8,3.91264439]
[1750409976153,0.36126882,2555.9,2555.8,3.91264439]
[1750409976353,0.36126882,2556.0,2555.7,4.46273076]
[1750409976602,0.72376201,2555.9,2555.7,4.46273076]
[1750409976802,0.36126882,2555.9,2555.6,4.46285541]
[1750409976948,9.0393,2556.1,2555.6,4.46285541]
[1750409976949,0.36126882,2555.8,2555.6,4.46285541]
[1750409977154,0.36126882,2555.7,2555.6,4.46285541]
[1750409977386,0.36245703,2555.7,2555.6,4.46285541]
[1750409977702,0.21781047,2556.0,2555.7,3.91272965]
[1750409977903,0.3629922,2555.9,2555.7,3.91272965]
[1750409978198,0.7259844,2555.8,2555.7,4.46272965]
[1750409978899,0.3629922,2555.8,2555.7,4.46272965]
[1750409979511,0.72602321,2555.8,2555.7,4.46272965]
[1750409979726,0.72617336,2555.8,2555.7,4.46272965]
[1750409980303,0.72617336,2555.8,2555.7,0.55]
[1750409981037,0.72617336,2555.8,2555.4,3.913225]
[1750409981199,0.36308668,2555.7,2555.1,0.7547]
[1750409981527,0.36312656,2555.6,2555.5,4.46306239]
[1750409985426,0.7699,2555.8,2555.5,4.46306239]
[1750409985427,0.7699,2555.8,2555.6,3.91292127]
[1750409985633,0.36317594,2555.7,2555.6,3.91292127]
[1750409986100,0.36316652,2555.7,2555.6,3.91292127]
[1750409986429,0.36322094,2555.7,2555.6,3.91292127]
[1750409986936,0.36322013,2555.7,2555.6,3.91292127]
[1750409987900,0.72653497,2555.7,2555.6,3.91292127]
[1750409988201,0.7266287,2555.7,2555.6,3.91292127]
[1750409988626,0.72662951,2555.7,2555.6,3.91292127]
[1750409988834,0.72662511,2555.7,2555.6,3.91292127]
[1750409989240,0.72662969,2555.7,2555.6,3.91292127]
[1750409989404,0.3633102,2555.7,2555.6,3.91292127]
[1750409990929,8.152,2555.8,2555.7,3.91282231]
[1750409991244,9.09703516,2555.8,2555.7,3.91282231]
[1750409992339,9.09603516,2555.8,2555.7,3.91282231]
[1750409992632,9.09622702,2555.8,2555.7,3.91282231]
[1750409993020,0.94522702,2555.8,2555.7,3.91282231]
[1750409993193,9.09332898,2555.8,2555.7,3.91282231]
[1750409993394,9.09350739,2555.8,2555.7,3.91282231]
[1750409993735,9.09344487,2555.8,2555.7,3.91282231]
[1750409993937,9.09344515,2555.8,2555.7,3.91282231]
[1750409995530,9.09338779,2555.8,2555.7,3.91282231]
[1750409995737,9.09329196,2555.8,2555.7,3.91282231]
[1750409996149,0.94529196,2555.8,2555.7,3.91282231]
[1750409996319,9.0921619,2555.8,2555.7,3.91282231]
[1750409996520,9.09213515,2555.8,2555.7,3.91282231]
[1750409996722,0.94513515,2555.8,2555.7,3.91282231]
[1750409997345,0.94513515,2555.8,2555.7,4.46282231]
[1750409998620,0.9451533,2555.8,2555.6,3.91287374]
[1750409998816,7.3017,2555.9,2555.8,3.91266922]
[1750409999059,0.94533028,2555.9,2555.8,3.91266922]
[1750409999558,9.09134398,2555.9,2555.8,3.91266922]
[1750409999784,9.09134398,2555.9,2555.7,3.91271682]
[1750410000059,0.94535566,2555.8,2555.7,3.91271682]
[1750410000425,0.94550716,2555.8,2555.7,3.91271682]
[1750410000620,0.72729415,2555.8,2555.7,4.67861682]
[1750410000857,0.36369401,2555.8,2555.7,5.22861682]
[1750410001366,6.452,2555.9,2555.8,3.91266922]
[1750410001546,0.9452414,2555.9,2555.8,3.91266922]
[1750410001765,7.3972414,2555.9,2555.8,3.91266922]
[1750410001925,6.452,2555.9,2555.8,3.91266922]
[1750410002126,7.3971484,2555.9,2555.8,3.91266922]
[1750410002954,7.3971484,2555.9,2555.8,5.76808967]
[1750410002955,0.36351968,2555.9,2555.8,5.76808967]
[1750410003141,0.36351968,2555.9,2555.8,6.59168967]
[1750410003753,0.062,2556.2,2556.1,3.91221]
[1750410003981,0.36356045,2556.2,2556.1,3.91221]
[1750410004176,0.72690147,2556.2,2556.1,3.91221]
[1750410004381,0.36333871,2556.2,2556.1,3.91221]
[1750410004579,0.72666783,2556.2,2556.1,3.91221]
[1750410004790,1.694,2556.3,2556.2,3.91205695]
[1750410004950,1.694,2556.4,2556.3,3.91184248]
[1750410005291,0.94462851,2556.4,2556.3,3.91184248]
[1750410005589,0.94462624,2556.4,2556.3,3.91184248]
[1750410005803,0.94462624,2556.4,2556.2,3.91196632]
[1750410005943,6.451,2556.5,2556.3,3.91190392]
[1750410006143,0.9440523,2556.4,2556.3,3.91190392]
[1750410006666,0.94402811,2556.4,2556.3,3.91190392]
[1750410006985,0.72616985,2556.4,2556.3,3.91190392]
[1750410007187,7.39402236,2556.4,2556.2,3.91197705]
[1750410007340,0.36308437,2556.3,2556.2,3.91197705]
[1750410007541,0.36317426,2556.3,2556.2,3.91197705]
[1750410008365,0.849,2556.2,2555.5,4.77440438]
[1750410008581,0.42517426,2556.1,2555.7,3.91278022]
[1750410008783,7.52774389,2556.2,2556.0,3.91236306]
[1750410009099,0.3630386,2556.1,2556.0,3.91236306]
[1750410010393,0.7914,2556.4,2556.2,3.91200184]
[1750410010570,8.50611999,2556.3,2556.2,3.91200184]
[1750410010766,0.36311999,2556.3,2556.2,3.91200184]
[1750410010967,8.50511999,2556.3,2556.1,3.9121422]
[1750410011271,8.142,2556.3,2556.1,3.9121422]
[1750410011671,0.36310322,2556.2,2556.1,3.9121422]
[1750410012274,0.36310322,2556.2,2556.1,4.4621422]
[1750410012582,8.142,2556.4,2556.2,3.91195412]
[1750410012790,0.36309036,2556.3,2556.2,3.91195412]
[1750410012987,8.142,2556.4,2556.2,3.91195412]
[1750410013179,0.062,2556.3,2556.1,3.91210466]
[1750410013375,0.806,2556.3,2555.7,0.55]
[1750410013701,0.062,2556.2,2555.7,4.46282231]
[1750410014201,0.806,2556.3,2556.1,3.91209792]
[1750410014405,0.36305332,2556.2,2556.1,3.91209792]
[1750410014779,0.806,2556.3,2556.2,3.91205695]
[1750410015079,8.142,2556.4,2556.2,3.91205695]
[1750410015400,0.7942,2556.5,2556.3,3.91190392]
[1750410015603,8.5040044,2556.4,2556.1,3.91207522]
[1750410015773,0.4250044,2556.3,2555.8,4.46260965]
[1750410015973,0.3630044,2556.2,2556.0,3.91224452]
[1750410016179,0.3630044,2556.1,2556.0,3.91224452]
[1750410016602,0.36297747,2556.1,2556.0,3.91224452]
[1750410017210,0.36297747,2556.1,2555.9,3.91244854]
[1750410017417,0.36297747,2556.0,2555.9,4.46244854]
[1750410019512,8.203,2556.4,2556.0,3.91226276]
[1750410019886,0.36320091,2556.3,2556.1,3.91220397]
[1750410020091,0.36320091,2556.2,2556.1,3.91220397]
[1750410020401,0.36320091,2556.2,2556.1,4.69760397]
[1750410020601,0.36320091,2556.2,2556.1,5.24760397]
[1750410020902,0.36320091,2556.2,2556.1,5.24761]
[1750410021088,0.36320091,2556.2,2556.1,4.46221]
[1750410021287,7.53444389,2556.5,2556.2,3.91202659]
[1750410021483,0.36324604,2556.4,2556.2,3.91202659]
[1750410021806,0.42384604,2556.3,2556.1,3.91218982]
[1750410022112,0.36324604,2556.2,2556.1,3.91218982]
[1750410022298,0.36323739,2556.2,2556.0,0.55]
[1750410022480,0.36323588,2556.1,2556.0,4.46224437]
[1750410024184,6.447,2556.3,2556.2,3.91205695]
[1750410024374,0.36338724,2556.3,2556.1,3.91221]
[1750410024709,10.0,2556.7,2556.5,3.91146702]
[1750410024917,9.07980304,2556.6,2556.4,3.91161826]
[1750410025073,0.36342979,2556.5,2556.4,3.91166998]
[1750410026292,10.0,2556.6,2556.5,3.91159788]
[1750410026475,10.94482669,2556.6,2556.5,3.91159788]
[1750410026808,10.9448263,2556.6,2556.5,3.91159788]
[1750410027374,10.94494029,2556.6,2556.5,3.91159788]
[1750410027710,0.36346588,2556.6,2556.5,5.32354467]
[1750410028012,9.4656,2557.2,2556.6,4.46130788]
[1750410028013,8.134,2556.9,2556.6,4.46130788]
[1750410028323,0.36339545,2556.8,2556.7,3.91122692]
[1750410028676,0.36336564,2556.8,2556.7,3.91122692]
[1750410028869,0.36337027,2556.8,2556.7,3.91122692]
[1750410029283,0.36337027,2556.8,2556.6,0.55]
[1750410029284,0.36337027,2556.8,2556.6,3.91136329]
[1750410029484,8.9811,2556.9,2556.6,3.91136329]
[1750410029690,0.36356638,2556.8,2556.7,3.91129189]
[1750410029891,6.80856638,2556.8,2556.7,3.91129189]
[1750410030273,6.80827629,2556.8,2556.7,3.91129189]
[1750410030471,6.445,2556.8,2556.7,3.91129189]
[1750410030677,6.80827963,2556.8,2556.7,3.91129189]
[1750410031213,6.8688807,2556.8,2556.7,3.91129189]
[1750410031374,6.5056,2556.8,2556.7,3.91129189]
[1750410031716,6.80842253,2556.8,2556.7,3.91129189]
[1750410031924,6.80838312,2556.8,2556.6,3.91137415]
[1750410032215,0.36338312,2556.7,2556.6,3.91137415]
[1750410032790,0.36338312,2556.7,2556.5,3.91152103]
[1750410033119,0.36338312,2556.6,2556.5,3.91152103]
[1750410033504,0.36328951,2556.6,2556.5,3.91152103]
[1750410034992,7.2253,2556.8,2556.5,3.91152103]
[1750410035227,0.3631265,2556.7,2556.5,3.91152103]
[1750410035395,0.3631265,2556.6,2556.5,3.91152103]
[1750410036425,0.36297292,2556.6,2556.4,4.46162601]
[1750410036604,0.36297292,2556.5,2556.4,4.46162601]
[1750410036787,0.36293564,2556.5,2556.3,3.91180292]
[1750410036991,0.36293564,2556.4,2556.3,4.46180292]
[1750410037788,0.0606,2556.6,2556.4,3.91174695]
[1750410038049,0.36287801,2556.5,2556.4,3.91174695]
[1750410038326,0.36284517,2556.5,2556.3,4.46181161]
[1750410038494,0.0606,2556.6,2556.3,4.46181161]
[1750410038695,0.36284591,2556.5,2556.3,4.46181161]
[1750410038897,0.0606,2556.6,2556.4,3.91174591]
[1750410039144,0.8409,2556.8,2556.5,3.91155165]
[1750410039292,2.05176133,2556.7,2556.6,3.91136832]
[1750410039645,2.05176043,2556.7,2556.6,3.91136832]
[1750410039891,0.36276043,2556.7,2556.6,3.91136832]
[1750410040401,0.36273487,2556.7,2556.6,3.91136832]
[1750410040732,0.36262796,2556.7,2556.6,3.91136832]
[1750410041339,0.36262796,2556.7,2556.6,5.32227032]
[1750410041501,0.36216421,2557.0,2556.9,3.9109112]
[1750410042040,11.689,2557.1,2557.0,3.910833]
[1750410042236,12.05105551,2557.1,2557.0,3.910833]
[1750410042442,0.36205551,2557.1,2557.0,0.7565]
[1750410042603,10.71164977,2557.4,2557.0,0.46673926]
[1750410042799,0.8283,2557.1,2556.5,7.1975]
[1750410043141,0.3619701,2557.0,2556.8,3.91112975]
[1750410043438,0.3619701,2557.0,2556.9,3.91098595]
[1750410043824,0.3619701,2557.0,2556.9,4.46098595]
[1750410044029,0.3619701,2557.1,2557.0,3.910833]
[1750410044841,0.36187355,2557.1,2557.0,3.910833]
[1750410045061,0.36187355,2557.1,2556.9,0.55]
[1750410045265,0.36187355,2557.0,2556.9,3.91097023]
[1750410045868,0.36187355,2557.1,2556.9,3.91097023]
[1750410046369,0.36187355,2557.0,2556.9,3.91097023]
[1750410046532,0.36202798,2557.1,2556.9,3.91097023]
[1750410046732,0.36202154,2557.0,2556.9,3.91097023]
[1750410046934,0.36202154,2557.1,2556.9,3.91097023]
[1750410047241,0.36202525,2557.0,2556.9,3.91097023]
[1750410047446,0.36202525,2557.1,2557.0,4.460833]
[1750410047636,0.36202525,2557.1,2557.0,0.55]
[1750410047837,0.36202236,2557.1,2556.7,3.97013698]
[1750410048064,0.36202236,2557.0,2556.8,4.46099634]
[1750410048265,0.36202236,2557.1,2556.8,0.55]
[1750410048433,0.36202236,2557.0,2556.8,0.55]
[1750410048635,0.36200476,2557.1,2556.9,3.91098595]
[1750410048880,0.36200476,2557.0,2556.9,3.91098595]
[1750410049037,0.36200476,2557.1,2556.8,4.46105711]
[1750410049232,0.42252786,2557.0,2556.7,3.91128109]
[1750410049655,0.36192786,2556.9,2556.7,3.91128109]
[1750410050052,7.10267175,2556.9,2556.5,0.55]
[1750410050339,0.42292786,2556.8,2556.6,3.91142922]
[1750410050642,0.36202584,2556.8,2556.6,3.91142922]
[1750410051153,0.061,2556.7,2556.5,3.91158785]
[1750410051471,0.42302584,2556.7,2556.4,3.91167522]
[1750410051776,0.42302584,2556.7,2556.5,3.91158984]
[1750410051777,2.89362584,2556.7,2556.5,3.91158984]
[1750410051972,1.686,2556.7,2556.6,3.91144488]
[1750410052151,2.04816438,2556.7,2556.6,3.91144488]
[1750410052968,8.48716438,2556.7,2556.5,3.91151339]
[1750410053168,8.125,2556.7,2556.5,3.91151612]
[1750410053364,8.125,2556.7,2556.5,3.91150732]
[1750410053687,8.125,2556.9,2556.6,4.68904488]
[1750410053895,8.125,2556.9,2556.8,3.91113892]
[1750410054090,8.48705538,2556.9,2556.6,4.68904488]
[1750410054302,1.686,2556.9,2556.8,3.91113892]
[1750410054604,2.04808335,2556.9,2556.8,3.91113892]
[1750410055717,2.04808335,2556.9,2556.8,3.96793892]
[1750410056226,2.04832742,2556.9,2556.8,3.96793892]
[1750410056373,2.04831879,2556.9,2556.8,3.96793892]